{"text_format":"1","workbook":"xlsx","n_sheets":3,"sheets":["Arkusz1","Arkusz2","Arkusz3"],"not_rendered":{"charts":0,"images":0,"macros":0,"external_links":0,"defined_names":1,"comments":0,"pivot_tables":0},"unopened":[],"bounds":{"document_bytes":16777216,"sheet_cells":100000,"rows_first":2000,"rows_last":500,"rows_between":2000,"halvings":0,"cell_chars":16384,"cell_head_chars":4096},"cells_cut":0,"cells_raw":0,"read":"whole","date_system":"1900"}

{"sheet":"Arkusz1","index":0,"n_rows":50,"n_cols":9,"rows_kept":50,"cut":false,"hidden":false,"merged":[[0,1,0,8],[1,1,1,8]]}
[null,"Załącznik nr 3\ndo Zapytania ofertowego"]
[null,"Formularz Cenowy - Opis przedmiotu zamówienia"]
[null,1,3,4,5,6,7,8,9]
["l.p.","RODZAJ ARTYKUŁU","j.m.","ILOŚĆ","Cena jednostkowa netto","Wartość netto","Stawka VAT","Podatek Vat","Wartość brutto"]
[]
["1.","Płyn Ajax uniwersalny, 1,5 l, mix zapachów","szt.",120,null,{"$f":"D6*E6","v":0},0.23,{"$f":"0.23*F6","v":0},{"$f":"F6+H6","v":0}]
["2.","Cleanlux zmywacz do podłóg 500 ml","szt.",45,null,{"$f":"D7*E7","v":0},0.23,{"$f":"0.23*F7","v":0},{"$f":"F7+H7","v":0}]
["3.","Ścierki do mycia podłogi z tetry (40cmx60cm)grube","szt.",40,null,0,0.23,0,0]
["4.","Kij plastikowyz gwintem do szczotki - 150 cm","szt.",15,null,0,0.23,0,0]
["5.","Kij teleskopowy Vileda","szt.",10,null,0,0.23,0,0]
["6.","Mop sznurek Maxi W4","szt.",50,null,0,0.23,0,0]
["7.","Szczotka 30 cm, plastikowa, do zamiatania na kij z gwintem","szt.",20,null,0,0.23,0,0]
["8.","Sidolux - emulsja do nabłyszczania PCV 500 ml","szt.",45,null,0,0.23,0,0]
["9.","Sidolux - do mycia PCV i glazury 750 ml","szt.",80,null,{"$f":"D14*E14","v":0},0.23,0,0]
["10.","Wiadro z wyciskaczem do mopa płaskiego Vileda","szt.",6,null,0,0.23,0,0]
["11.","Wiadro 14 l.do mopa na kiju","szt.",7,null,0,0.23,0,0]
["12.","Szczotki do sedesu białe - z pojemnikiem","szt.",50,null,0,0.23,0,0]
["13.","Mydło w płynie antybakteryjne ATTIS, opakowanie  kanister 5l","szt.",65,null,0,0.23,0,0]
["14.","Ręcznik składany zz, biały, 1 warstwowy Katrin Classic, Opakowanie 4000 listków, 402161","szt.",120,null,0,0.23,0,0]
["15.","Ręczniki papierowe kuchenne białe, 100% celulozy, 23x20 cm, min. 60 listków, Serwus (op.=2szt.)","op.",300,null,0,0.23,0,0]
["16.","Papier toaletowy biały - mała rolka. Wykonany z 2-warstwowej 100% celulozy. Długość rolki min. 30 metrów.","rolka",3700,null,0,0.23,0,0]
["17.","Papier toaletowy Katrin Classic System Toilet 800 Eco, 103424","rolka",1050,null,0,0.23,0,0]
["18.","Ręcznik w rolce pasujący do systemu Katrin XL System Towel Dispenser, 2 warstwowy z celulozy, długość minimum 140 m, Auto Cut, 460102","rolka",420,null,0,0.23,0,0]
["19.","Żel do wc Palemka 1l","szt.",125,null,0,0.23,0,0]
["20.","Odświeżacz powietrza do WC - Dynia","szt.",150,null,0,0.23,0,0]
["21.","Kostka do wc z koszykiem General Fresh","szt.",240,null,0,0.23,0,0]
["22.","Domestos - płyn 0,75 l","szt.",170,null,0,0.08,{"$f":"0.08*F7","v":0},0]
["23.","Wiadro PCV  12 l.","szt.",6,null,0,0.23,{"$f":"0.23*F28","v":0},0]
["24.","Kret - granulki do udrażniania rur 200 g","szt.",40,null,0,0.23,{"$f":"0.23*F29","v":0},0]
["25.","Clin do mycia szyb z pompką, 500 ml","szt.",70,null,0,0.23,0,0]
["26.","Mleczko Cif Cream Active 750 ml","szt.",110,null,0,0.23,0,0]
["27.","Odświeżacz Brait - aerozol, mix zapachów 300 ml","szt.",140,null,0,0.23,0,0]
["28.","Cif Spray Do Łazienek 750 ml",null,60,null,0,0.23,0,0]
["29.","Cilit Bang w spreju 0,75 l.(do kabin natryskowych)","szt.",20,null,0,0.23,0,0]
["30.","Lucek - płyn do mycia, 1 l","szt.",140,null,0,0.23,0,0]
["31.","Zmywak kuchenny, gąbka profilowana z boku   ","szt.",110,null,0,0.23,0,0]
["32.","Ścierka z mikrofibry 32/32 cm. Gramatura minimalnie 360g. Pakowana po 5 sztuk. Medi-Sept.","szt.",240,null,0,0.23,0,0]
["33.","Sidolux do czyszczenia mebli w areozolu 350 ml","szt.",160,null,0,0.23,0,0]
["34.","Szczotka zmiotka z szufelką z gumką","szt.",11,null,0,0.23,0,0]
["35.","Mop Vileda płaski 40 cm kod 147745","szt.",20,null,0,0.23,0,0]
["36.","Mop Salsa płaski 40 cm. (York)","szt.",22,null,0,0.23,0,0]
["37.","Stelaż Vileda do mopa płaskiego 40 cm kod 1146963","szt.",12,null,0,0.23,0,0]
["38.","Uchwyt Vileda do Pada prostokątnego 11x25 cm z kijem","szt.",6,null,0,0.23,0,0]
["39.","Pad czyszczący Vileda prostokątny 11x25 cm czarny","szt.",7,null,0,0.23,0,0]
["40.","Worki na śmieci LDPE, 20l, 1 op.=50 szt.","rolka",50,null,0,0.23,0,0]
["41.","Worki na śmieci LDPE, 35l, 1 op.=50 szt.","rolka",850,null,0,0.23,0,0]
["42.","Worki na śmieci LDPE, 60l, 1op.=25 szt.","rolka",720,null,0,0.23,0,0]
["43.","Worki na śmieci LDPE, 120l, 1 op.=25 szt.","rolka",460,null,0,0.23,0,0]
["44.","Worki do odkurzacza Karcher T-10/1","op.",6,null,0,0.23,0,0]
[null,null,null,null,null,null,null,"Brutto razem",{"$f":"SUM(I6:I49)","v":0}]

{"sheet":"Arkusz2","index":1,"n_rows":0,"n_cols":0,"rows_kept":0,"cut":false,"hidden":false,"merged":[]}

{"sheet":"Arkusz3","index":2,"n_rows":0,"n_cols":0,"rows_kept":0,"cut":false,"hidden":false,"merged":[]}